Workbook

Sheet 1
A1: مسلسل | B1: =SUM($B$2:$B$1000) -> 0 | C1: الصنف | D1: الاسم | E1: السعر | F1: =SUM($F$2:$F$1000) -> 0 | G1: التاريخ | J1: بادى 23 | K1: نامى 21 خشن | L1: بادى نامى ناعم | M1: بادى نامى خشن | N1: بياض | O1: ردة | P1: دشيشة
A2: =IF(C2="","",SUBTOTAL(3,$C$2:C2)) ->  | F2: =IFERROR(B2*E2,"") -> 0 | G2: =IF(B2="","",TODAY()) -> 
A3: =IF(C3="","",SUBTOTAL(3,$C$2:C3)) ->  | F3: =IFERROR(B3*E3,"") -> 0
A4: =IF(C4="","",SUBTOTAL(3,$C$2:C4)) ->  | F4: 0
A5: =IF(C5="","",SUBTOTAL(3,$C$2:C5)) ->  | F5: 0
A6: =IF(C6="","",SUBTOTAL(3,$C$2:C6)) ->  | F6: 0
A7: =IF(C7="","",SUBTOTAL(3,$C$2:C7)) ->  | F7: 0
A8: =IF(C8="","",SUBTOTAL(3,$C$2:C8)) ->  | F8: 0
A9: =IF(C9="","",SUBTOTAL(3,$C$2:C9)) ->  | F9: 0
A10: =IF(C10="","",SUBTOTAL(3,$C$2:C10)) ->  | F10: 0
A11: =IF(C11="","",SUBTOTAL(3,$C$2:C11)) ->  | F11: 0
A12: =IF(C12="","",SUBTOTAL(3,$C$2:C12)) ->  | F12: 0
A13: =IF(C13="","",SUBTOTAL(3,$C$2:C13)) ->  | F13: 0
A14: =IF(C14="","",SUBTOTAL(3,$C$2:C14)) ->  | F14: 0
A15: =IF(C15="","",SUBTOTAL(3,$C$2:C15)) ->  | F15: 0
A16: =IF(C16="","",SUBTOTAL(3,$C$2:C16)) ->  | F16: 0
A17: =IF(C17="","",SUBTOTAL(3,$C$2:C17)) ->  | F17: 0
A18: =IF(C18="","",SUBTOTAL(3,$C$2:C18)) ->  | F18: 0
A19: =IF(C19="","",SUBTOTAL(3,$C$2:C19)) ->  | F19: 0
A20: =IF(C20="","",SUBTOTAL(3,$C$2:C20)) ->  | F20: 0
A21: =IF(C21="","",SUBTOTAL(3,$C$2:C21)) ->  | F21: 0
A22: =IF(C22="","",SUBTOTAL(3,$C$2:C22)) ->  | F22: 0
A23: =IF(C23="","",SUBTOTAL(3,$C$2:C23)) ->  | F23: 0
A24: =IF(C24="","",SUBTOTAL(3,$C$2:C24)) ->  | F24: 0
A25: =IF(C25="","",SUBTOTAL(3,$C$2:C25)) ->  | F25: 0
A26: =IF(C26="","",SUBTOTAL(3,$C$2:C26)) ->  | F26: 0
A27: =IF(C27="","",SUBTOTAL(3,$C$2:C27)) ->  | F27: 0
A28: =IF(C28="","",SUBTOTAL(3,$C$2:C28)) ->  | F28: 0
A29: =IF(C29="","",SUBTOTAL(3,$C$2:C29)) ->  | F29: 0
A30: =IF(C30="","",SUBTOTAL(3,$C$2:C30)) ->  | F30: 0
A31: =IF(C31="","",SUBTOTAL(3,$C$2:C31)) ->  | F31: 0
A32: =IF(C32="","",SUBTOTAL(3,$C$2:C32)) ->  | F32: 0
A33: =IF(C33="","",SUBTOTAL(3,$C$2:C33)) ->  | F33: 0
A34: =IF(C34="","",SUBTOTAL(3,$C$2:C34)) ->  | F34: 0
A35: =IF(C35="","",SUBTOTAL(3,$C$2:C35)) ->  | F35: 0
A36: =IF(C36="","",SUBTOTAL(3,$C$2:C36)) ->  | F36: 0
A37: =IF(C37="","",SUBTOTAL(3,$C$2:C37)) ->  | F37: 0
A38: =IF(C38="","",SUBTOTAL(3,$C$2:C38)) ->  | F38: 0
A39: =IF(C39="","",SUBTOTAL(3,$C$2:C39)) ->  | F39: 0
A40: =IF(C40="","",SUBTOTAL(3,$C$2:C40)) ->  | F40: 0
A41: =IF(C41="","",SUBTOTAL(3,$C$2:C41)) ->  | F41: 0
A42: =IF(C42="","",SUBTOTAL(3,$C$2:C42)) ->  | F42: 0
A43: =IF(C43="","",SUBTOTAL(3,$C$2:C43)) ->  | F43: 0
A44: =IF(C44="","",SUBTOTAL(3,$C$2:C44)) ->  | F44: 0
A45: =IF(C45="","",SUBTOTAL(3,$C$2:C45)) ->  | F45: 0
A46: =IF(C46="","",SUBTOTAL(3,$C$2:C46)) ->  | F46: 0
A47: =IF(C47="","",SUBTOTAL(3,$C$2:C47)) ->  | F47: 0
A48: =IF(C48="","",SUBTOTAL(3,$C$2:C48)) ->  | F48: 0
A49: =IF(C49="","",SUBTOTAL(3,$C$2:C49)) ->  | F49: 0
A50: =IF(C50="","",SUBTOTAL(3,$C$2:C50)) ->  | F50: 0
A51: =IF(C51="","",SUBTOTAL(3,$C$2:C51)) ->  | F51: 0
A52: =IF(C52="","",SUBTOTAL(3,$C$2:C52)) ->  | F52: 0
A53: =IF(C53="","",SUBTOTAL(3,$C$2:C53)) ->  | F53: 0
A54: =IF(C54="","",SUBTOTAL(3,$C$2:C54)) ->  | F54: 0
A55: =IF(C55="","",SUBTOTAL(3,$C$2:C55)) ->  | F55: 0
A56: =IF(C56="","",SUBTOTAL(3,$C$2:C56)) ->  | F56: 0
A57: =IF(C57="","",SUBTOTAL(3,$C$2:C57)) ->  | F57: 0
A58: =IF(C58="","",SUBTOTAL(3,$C$2:C58)) ->  | F58: 0
A59: =IF(C59="","",SUBTOTAL(3,$C$2:C59)) ->  | F59: 0
A60: =IF(C60="","",SUBTOTAL(3,$C$2:C60)) ->  | F60: 0
A61: =IF(C61="","",SUBTOTAL(3,$C$2:C61)) ->  | F61: 0
A62: =IF(C62="","",SUBTOTAL(3,$C$2:C62)) ->  | F62: 0
A63: =IF(C63="","",SUBTOTAL(3,$C$2:C63)) ->  | F63: 0
A64: =IF(C64="","",SUBTOTAL(3,$C$2:C64)) ->  | F64: 0
A65: =IF(C65="","",SUBTOTAL(3,$C$2:C65)) ->  | F65: 0
A66: =IF(C66="","",SUBTOTAL(3,$C$2:C66)) ->  | F66: 0 | G66: =IF(B66="","",TODAY()) -> 
A67: =IF(C67="","",SUBTOTAL(3,$C$2:C67)) ->  | F67: =IFERROR(B67*E67,"") -> 0
A68: =IF(C68="","",SUBTOTAL(3,$C$2:C68)) ->  | F68: 0
A69: =IF(C69="","",SUBTOTAL(3,$C$2:C69)) ->  | F69: 0
A70: =IF(C70="","",SUBTOTAL(3,$C$2:C70)) ->  | F70: 0
A71: =IF(C71="","",SUBTOTAL(3,$C$2:C71)) ->  | F71: 0
A72: =IF(C72="","",SUBTOTAL(3,$C$2:C72)) ->  | F72: 0
A73: =IF(C73="","",SUBTOTAL(3,$C$2:C73)) ->  | F73: 0
A74: =IF(C74="","",SUBTOTAL(3,$C$2:C74)) ->  | F74: 0
A75: =IF(C75="","",SUBTOTAL(3,$C$2:C75)) ->  | F75: 0
A76: =IF(C76="","",SUBTOTAL(3,$C$2:C76)) ->  | F76: 0
A77: =IF(C77="","",SUBTOTAL(3,$C$2:C77)) ->  | F77: 0
A78: =IF(C78="","",SUBTOTAL(3,$C$2:C78)) ->  | F78: 0
A79: =IF(C79="","",SUBTOTAL(3,$C$2:C79)) ->  | F79: 0
A80: =IF(C80="","",SUBTOTAL(3,$C$2:C80)) ->  | F80: 0
A81: =IF(C81="","",SUBTOTAL(3,$C$2:C81)) ->  | F81: 0
A82: =IF(C82="","",SUBTOTAL(3,$C$2:C82)) ->  | F82: 0
A83: =IF(C83="","",SUBTOTAL(3,$C$2:C83)) ->  | F83: 0
A84: =IF(C84="","",SUBTOTAL(3,$C$2:C84)) ->  | F84: 0
A85: =IF(C85="","",SUBTOTAL(3,$C$2:C85)) ->  | F85: 0
A86: =IF(C86="","",SUBTOTAL(3,$C$2:C86)) ->  | F86: 0
A87: =IF(C87="","",SUBTOTAL(3,$C$2:C87)) ->  | F87: 0
A88: =IF(C88="","",SUBTOTAL(3,$C$2:C88)) ->  | F88: 0
A89: =IF(C89="","",SUBTOTAL(3,$C$2:C89)) ->  | F89: 0
A90: =IF(C90="","",SUBTOTAL(3,$C$2:C90)) ->  | F90: 0
A91: =IF(C91="","",SUBTOTAL(3,$C$2:C91)) ->  | F91: 0
A92: =IF(C92="","",SUBTOTAL(3,$C$2:C92)) ->  | F92: 0
A93: =IF(C93="","",SUBTOTAL(3,$C$2:C93)) ->  | F93: 0
A94: =IF(C94="","",SUBTOTAL(3,$C$2:C94)) ->  | F94: 0
A95: =IF(C95="","",SUBTOTAL(3,$C$2:C95)) ->  | F95: 0
A96: =IF(C96="","",SUBTOTAL(3,$C$2:C96)) ->  | F96: 0
A97: =IF(C97="","",SUBTOTAL(3,$C$2:C97)) ->  | F97: 0
A98: =IF(C98="","",SUBTOTAL(3,$C$2:C98)) ->  | F98: 0
A99: =IF(C99="","",SUBTOTAL(3,$C$2:C99)) ->  | F99: 0
A100: =IF(C100="","",SUBTOTAL(3,$C$2:C100)) ->  | F100: 0
A101: =IF(C101="","",SUBTOTAL(3,$C$2:C101)) ->  | F101: 0

Sheet المخزن
B1: محضر تسليم وتسلم
B3: الصنف | C3: =[1]ورقة1!B4 -> بادى 23 | D3: =[1]ورقة1!C4 -> نامى خشن | E3: =[1]ورقة1!D4 -> بادى نامى ناعم | F3: =[1]ورقة1!E4 -> بادى نامى خشن | G3: =[1]ورقة1!F4 -> بياض | H3: =[1]ورقة1!G4 -> ردة | I3: =[1]ورقة1!H4 -> دشيشة | J3: التاريخ
B4: الموجود بالبرنامج | C4: ='بادى 23'!I1 -> 17.31 | D4: ='نامى 21 خشن'!I1 -> 31.17 | E4: ='بادى نامى ناعم'!I1 -> 0 | F4: ='بادى نامى خشن'!I1 -> 10.42 | G4: =بياض!I1 -> 3 | H4: =ردة!I1 -> 0 | I4: =دشيشة!I1 -> 0.55
B5: الموجود بالمخزن صباحا | J5: 2018-10-16
B6: الموجود بالمخزن مساءا | C6: 15ش +4.5 ك | D6: 19ش +17 ك | E6: 0 | F6: 13ش +2.5 ك | G6: 7 | H6: 29.5 ك | I6: 0
B7: الموجود بالمخزن صباحا | D7: 19ش +9.5 ك | E7: 0 | F7: 13ش | G7: 7 | H7: 0 | J7: 2018-10-17
B8: الموجود بالمخزن مساءا | C8: 13ش +22.75 ك | D8: 57ش + 9.5ك | E8: 0 | F8: 3 | G8: 5 | H8: 1 | I8: 1
B9: الموجود بالمخزن صباحا | C9: 4ش+18ك | D9: 53ش+4 | E9: 0 | F9: 3 | G9: 5 | H9: 34.75 | I9: 1 | J9: 2018-10-18
B10: الموجود بالمخزن مساءا | C10: 3ش+14ك | D10: 53ش | E10: 0 | F10: 3ش | G10: 2ش | H10: 35ك | I10: 40.5ك
B11: الموجود بالمخزن صباحا | C11: 3ش | D11: 47ش+39.75ك | E11: 0 | F11: 3ش | G11: 2ش | H11: 31.5ك | I11: 37.8ك | J11: 2018-10-20
B12: الموجود بالمخزن مساءا | C12: 1ش+ 47ك | D12: 45ش | F12: 3ش | G12: 2ش | H12: 0 | I12: 37.5ك
B13: الموجود بالمخزن صباحا | C13: 1ش+ 47ك | D13: 42ش+40ك | F13: 1 | G13: 2ش | H13: 0 | I13: 32.5 ك | J13: 2018-10-21
B14: الموجود بالمخزن مساءا | C14: 21 ش +44.5ك | D14: 40ش + 37.5ك | F14: 1ش | G14: 2 ش | H14: 0 | I14: 32.5 ك
B15: الموجود بالمخزن صباحا
B16: الموجود بالمخزن مساءا | C16: 0
B17: الموجود بالمخزن صباحا
B18: الموجود بالمخزن مساءا | C18: 0 | D18: 39ش+18 | F18: 10ش+ 46ك | G18: 0 | H18: 0 | I18: 27.5
B19: الموجود بالمخزن صباحا | D19: 38ش +18; | F19: 10ش+ 46ك | I19: 27.5ك | J19: 2018-10-24
B20: الموجود بالمخزن مساءا | C20: 18ش+42ك | D20: 35ش+9.5ك | F20: 10ش+ 46ك | G20: 5ش | H20: 0 | I20: 27.5ك
B21: الموجود بالمخزن صباحا | C21: 17ش+17ك | D21: 32ش+8.5ك | F21: 10ش+ 46ك | G21: 5ش | I21: 27.5ك
B22: الموجود بالمخزن مساءا
B23: الموجود بالمخزن صباحا
B24: الموجود بالمخزن مساءا
B25: الموجود بالمخزن صباحا
B26: الموجود بالمخزن مساءا
B27: الموجود بالمخزن صباحا
B28: الموجود بالمخزن مساءا
B29: الموجود بالمخزن صباحا
B30: الموجود بالمخزن مساءا
B31: الموجود بالمخزن صباحا
B32: الموجود بالمخزن مساءا
B33: الموجود بالمخزن صباحا
B34: الموجود بالمخزن مساءا
B35: الموجود بالمخزن صباحا
B36: الموجود بالمخزن مساءا
B37: الموجود بالمخزن صباحا
B38: الموجود بالمخزن مساءا
B39: الموجود بالمخزن صباحا
B40: الموجود بالمخزن مساءا
B41: الموجود بالمخزن صباحا
B42: الموجود بالمخزن مساءا
B43: الموجود بالمخزن صباحا
B44: الموجود بالمخزن مساءا
B45: الموجود بالمخزن صباحا
B46: الموجود بالمخزن مساءا
B47: الموجود بالمخزن صباحا
B48: الموجود بالمخزن مساءا
B49: الموجود بالمخزن صباحا
B50: الموجود بالمخزن مساءا
B51: الموجود بالمخزن صباحا
B52: الموجود بالمخزن مساءا
B53: الموجود بالمخزن صباحا
B54: الموجود بالمخزن مساءا
B55: الموجود بالمخزن صباحا
B56: الموجود بالمخزن مساءا
B57: الموجود بالمخزن صباحا
B58: الموجود بالمخزن مساءا
B59: الموجود بالمخزن صباحا
B60: الموجود بالمخزن مساءا
B61: الموجود بالمخزن صباحا
B62: الموجود بالمخزن مساءا
B63: الموجود بالمخزن صباحا
B64: الموجود بالمخزن مساءا
B65: الموجود بالمخزن صباحا
B66: الموجود بالمخزن مساءا
B67: الموجود بالمخزن صباحا
B68: الموجود بالمخزن مساءا
B69: الموجود بالمخزن صباحا
B70: الموجود بالمخزن مساءا
B71: الموجود بالمخزن صباحا
B72: الموجود بالمخزن مساءا
B73: الموجود بالمخزن صباحا
B74: الموجود بالمخزن مساءا
B75: الموجود بالمخزن صباحا
B76: الموجود بالمخزن مساءا
B77: الموجود بالمخزن صباحا
B78: الموجود بالمخزن مساءا
B79: الموجود بالمخزن صباحا
B80: الموجود بالمخزن مساءا
B81: الموجود بالمخزن صباحا
B82: الموجود بالمخزن مساءا
B83: الموجود بالمخزن صباحا
B84: الموجود بالمخزن مساءا
B85: الموجود بالمخزن صباحا
B86: الموجود بالمخزن مساءا
B87: الموجود بالمخزن صباحا
B88: الموجود بالمخزن مساءا
B89: الموجود بالمخزن صباحا
B90: الموجود بالمخزن مساءا
B91: الموجود بالمخزن صباحا
B92: الموجود بالمخزن مساءا
B93: الموجود بالمخزن صباحا
B94: الموجود بالمخزن مساءا
B95: الموجود بالمخزن صباحا
B96: الموجود بالمخزن مساءا
B97: الموجود بالمخزن صباحا
B98: الموجود بالمخزن مساءا
B99: الموجود بالمخزن صباحا
B100: الموجود بالمخزن مساءا
B101: الموجود بالمخزن صباحا
B102: الموجود بالمخزن مساءا
B103: الموجود بالمخزن صباحا
B104: الموجود بالمخزن مساءا
B105: الموجود بالمخزن صباحا
B106: الموجود بالمخزن مساءا
B107: الموجود بالمخزن صباحا
B108: الموجود بالمخزن مساءا
B109: الموجود بالمخزن صباحا
B110: الموجود بالمخزن مساءا
B111: الموجود بالمخزن صباحا
B112: الموجود بالمخزن مساءا
B113: الموجود بالمخزن صباحا
B114: الموجود بالمخزن مساءا
B115: الموجود بالمخزن صباحا
B116: الموجود بالمخزن مساءا
B117: الموجود بالمخزن صباحا
B118: الموجود بالمخزن مساءا
B119: الموجود بالمخزن صباحا
B120: الموجود بالمخزن مساءا
B121: الموجود بالمخزن صباحا
B122: الموجود بالمخزن مساءا
B123: الموجود بالمخزن صباحا
B124: الموجود بالمخزن مساءا
B125: الموجود بالمخزن صباحا
B126: الموجود بالمخزن مساءا
B127: الموجود بالمخزن صباحا
B128: الموجود بالمخزن مساءا
B129: الموجود بالمخزن صباحا
B130: الموجود بالمخزن مساءا
B131: الموجود بالمخزن صباحا
B132: الموجود بالمخزن مساءا
B133: الموجود بالمخزن صباحا
B134: الموجود بالمخزن مساءا
B135: الموجود بالمخزن صباحا
B136: الموجود بالمخزن مساءا
B137: الموجود بالمخزن صباحا
B138: الموجود بالمخزن مساءا
B139: الموجود بالمخزن صباحا
B140: الموجود بالمخزن مساءا
B141: الموجود بالمخزن صباحا
B142: الموجود بالمخزن مساءا
B143: الموجود بالمخزن صباحا
B144: الموجود بالمخزن مساءا
B145: الموجود بالمخزن صباحا
B146: الموجود بالمخزن مساءا
B147: الموجود بالمخزن صباحا
B148: الموجود بالمخزن مساءا
B149: الموجود بالمخزن صباحا
B150: الموجود بالمخزن مساءا
B151: الموجود بالمخزن صباحا
B152: الموجود بالمخزن مساءا
B153: الموجود بالمخزن صباحا
B154: الموجود بالمخزن مساءا
B155: الموجود بالمخزن صباحا
B156: الموجود بالمخزن مساءا
B157: الموجود بالمخزن صباحا
B158: الموجود بالمخزن مساءا
B159: الموجود بالمخزن صباحا
B160: الموجود بالمخزن مساءا
B161: الموجود بالمخزن صباحا
B162: الموجود بالمخزن مساءا
B163: الموجود بالمخزن صباحا
B164: الموجود بالمخزن مساءا
B165: الموجود بالمخزن صباحا
B166: الموجود بالمخزن مساءا
B167: الموجود بالمخزن صباحا
B168: الموجود بالمخزن مساءا
B169: الموجود بالمخزن صباحا
B170: الموجود بالمخزن مساءا
B171: الموجود بالمخزن صباحا
B172: الموجود بالمخزن مساءا
B173: الموجود بالمخزن صباحا
B174: الموجود بالمخزن مساءا
B175: الموجود بالمخزن صباحا
B176: الموجود بالمخزن مساءا
B177: الموجود بالمخزن صباحا
B178: الموجود بالمخزن مساءا
B179: الموجود بالمخزن صباحا
B180: الموجود بالمخزن مساءا
B181: الموجود بالمخزن صباحا
B182: الموجود بالمخزن مساءا
B183: الموجود بالمخزن صباحا
B184: الموجود بالمخزن مساءا
B185: الموجود بالمخزن صباحا
B186: الموجود بالمخزن مساءا
B187: الموجود بالمخزن صباحا
B188: الموجود بالمخزن مساءا
B189: الموجود بالمخزن صباحا
B190: الموجود بالمخزن مساءا
B191: الموجود بالمخزن صباحا
B192: الموجود بالمخزن مساءا
B193: الموجود بالمخزن صباحا
B194: الموجود بالمخزن مساءا
B195: الموجود بالمخزن صباحا
B196: الموجود بالمخزن مساءا
B197: الموجود بالمخزن صباحا
B198: الموجود بالمخزن مساءا
B199: الموجود بالمخزن صباحا
B200: الموجود بالمخزن مساءا
B201: الموجود بالمخزن صباحا
... 71 more rows

Sheet بادى 23
A1: مسلسل | B1: =SUM($B$2:$B$986) -> 134.5 | C1: الصنف | D1: الاسم | E1: السعر | F1: =SUM($F$2:$F$986) -> 361 | G1: تاريخ البيع | H1: =SUM($H$2:$H$986) -> 2.69 | I1: =SUM($I$2:$I$986) -> 17.31 | J1: =SUM($J$2:$J$986) -> 20 | K1: التاريخ
A2: 2 | B2: 50 | C2: بادى 23 | D2: الشيخ عمر | E2: 6.8 | F2: 340 | G2: 2018-10-24 | H2: =B2/50 -> 1 | I2: =J2-H2 -> 19 | J2: 20 | K2: =IF($J2="","",IF(K2="",TODAY(),K2)) -> 
A3: 3 | B3: 3 | C3: بادى 23 | D3: زبون | E3: 7 | F3: 21 | G3: 2018-10-24 | H3: 0.06 | I3: -0.06
A4: 1 | B4: 5 | C4: بادى 23 | D4: زبون | F4: 0 | G4: 2018-10-24 | H4: 0.1 | I4: -0.1
A5: 1 | B5: 50 | C5: بادى 23 | D5: الشيخ عمر | F5: 0 | G5: 2018-10-25 | H5: 1 | I5: -1
A6: 3 | B6: 25 | C6: بادى 23 | D6: زبون | F6: 0 | G6: 2018-10-25 | H6: 0.5 | I6: -0.5
A7: 6 | B7: 1.5 | C7: بادى 23 | D7: زبون | F7: 0 | G7: 2018-10-25 | H7: 0.03 | I7: -0.03
H8: 0 | I8: 0
H9: 0 | I9: 0
H10: 0 | I10: 0
H11: 0 | I11: 0
H12: 0 | I12: 0
H13: 0 | I13: 0
H14: 0 | I14: 0
H15: 0
H16: 0
H17: 0
H18: 0
H19: 0
H20: 0
H21: 0
H22: 0
H23: 0
H24: 0
H25: 0
H26: 0
H27: 0
H28: 0
H29: 0
H30: 0
H31: 0
H32: 0
H33: 0
K34: =IF($J34="","",IF(K34="",TODAY(),K34)) -> 

Sheet نامى 21 خشن
A1: مسلسل | B1: =SUM($B$2:$B$986) -> 409.5 | C1: الصنف | D1: الاسم | E1: السعر | F1: =SUM($F$2:$F$986) -> 1767.5 | G1: تاريخ البيع | H1: =SUM($H$2:$H$986) -> 8.19 | I1: =SUM($I$2:$I$986) -> 31.17 | J1: =SUM($J$2:$J$986) -> 39.36 | K1: التاريخ
A2: 1 | B2: 100 | C2: نامى 21 خشن | D2: الشيخ عمر | E2: 6.7 | F2: 670 | G2: 2018-10-24 | H2: =B2/50 -> 2 | I2: =J2-H2 -> 37.36 | J2: 39.36 | K2: 2018-10-24
A3: 2 | B3: 1 | C3: نامى 21 خشن | D3: زبون | E3: 5 | F3: 5 | G3: 2018-10-24 | H3: 0.02 | I3: -0.02 | K3: =IF($J3="","",IF(K3="",TODAY(),K3)) -> 
A4: 1 | B4: 3 | C4: نامى 21 خشن | D4: زبون | E4: 7 | F4: 21 | G4: 2018-10-24 | H4: 0.06 | I4: -0.06
A5: 1 | B5: 100 | C5: نامى 21 خشن | D5: سعيد العقيلى | E5: 7 | F5: 700 | G5: 2018-10-24 | H5: 2 | I5: -2
A6: 1 | B6: 4.5 | C6: نامى 21 خشن | D6: فتحية | E6: 7 | F6: 31.5 | G6: 2018-10-24 | H6: 0.09 | I6: -0.09
A7: 2 | B7: 50 | C7: نامى 21 خشن | D7: الشيخ عمر | F7: 0 | G7: 2018-10-25 | H7: 1 | I7: -1
A8: 4 | B8: 50 | C8: نامى 21 خشن | D8: حسين | F8: 0 | G8: 2018-10-25 | H8: 1 | I8: -1
A9: 5 | B9: 50 | C9: نامى 21 خشن | D9: لمياء | F9: 0 | G9: 2018-10-25 | H9: 1 | I9: -1
A10: 1 | B10: 1 | C10: نامى 21 خشن | D10: زبون | F10: 0 | G10: 2018-10-25 | H10: 0.02 | I10: -0.02
A11: 1 | B11: 50 | C11: نامى 21 خشن | D11: ام حمادة كوتش | E11: 6.8 | F11: 340 | G11: 2018-10-25 | H11: 1 | I11: -1
H12: 0 | I12: 0
H13: 0 | I13: 0
H14: 0 | I14: 0
H15: 0
H16: 0
H17: 0
H18: 0
H19: 0
H20: 0
H21: 0
H22: 0
H23: 0
H24: 0
H25: 0
H26: 0
H27: 0
H28: 0
H29: 0
H30: 0
H31: 0
H32: 0
H33: 0
K34: =IF($J34="","",IF(K34="",TODAY(),K34)) -> 

Sheet بادى نامى ناعم
A1: مسلسل | B1: =SUM($B$2:$B$986) -> 0 | C1: الصنف | D1: الاسم | E1: السعر | F1: =SUM($F$2:$F$986) -> 0 | G1: تاريخ البيع | H1: =SUM($H$2:$H$986) -> 0 | I1: =SUM($I$2:$I$986) -> 0 | J1: =SUM($J$2:$J$986) -> 0 | K1: التاريخ
H2: =B2/50 -> 0 | I2: =J2-H2 -> 0 | K2: =IF($J2="","",IF(K2="",TODAY(),K2)) -> 
H3: 0 | I3: 0
H4: 0 | I4: 0
H5: 0 | I5: 0
H6: 0 | I6: 0
H7: 0 | I7: 0
H8: 0 | I8: 0
H9: 0 | I9: 0
H10: 0 | I10: 0
H11: 0 | I11: 0
H12: 0 | I12: 0
H13: 0 | I13: 0
H14: 0 | I14: 0
H15: 0
H16: 0
H17: 0
H18: 0
H19: 0
H20: 0
H21: 0
H22: 0
H23: 0
H24: 0
H25: 0
H26: 0
H27: 0
H28: 0
H29: 0
H30: 0
H31: 0
H32: 0
H33: 0
K34: =IF($J34="","",IF(K34="",TODAY(),K34)) -> 

Sheet بادى نامى خشن
A1: مسلسل | B1: =SUM($B$2:$B$986) -> 25 | C1: الصنف | D1: الاسم | E1: السعر | F1: =SUM($F$2:$F$986) -> 0 | G1: تاريخ البيع | H1: =SUM($H$2:$H$986) -> 0.5 | I1: =SUM($I$2:$I$986) -> 10.42 | J1: =SUM($J$2:$J$986) -> 10.92 | K1: التاريخ
A2: 2 | B2: 25 | C2: بادى نامى خشن | D2: ام انس | F2: 0 | G2: 2018-10-25 | H2: =B2/50 -> 0.5 | I2: =J2-H2 -> 10.42 | J2: 10.92 | K2: =IF($J2="","",IF(K2="",TODAY(),K2)) -> 
H3: 0 | I3: 0
H4: 0 | I4: 0
H5: 0 | I5: 0
H6: 0 | I6: 0
H7: 0 | I7: 0
H8: 0 | I8: 0
H9: 0 | I9: 0
H10: 0 | I10: 0
H11: 0 | I11: 0
H12: 0 | I12: 0
H13: 0 | I13: 0
H14: 0 | I14: 0
H15: 0
H16: 0
H17: 0
H18: 0
H19: 0
H20: 0
H21: 0
H22: 0
H23: 0
H24: 0
H25: 0
H26: 0
H27: 0
H28: 0
H29: 0
H30: 0
H31: 0
H32: 0
H33: 0
K34: =IF($J34="","",IF(K34="",TODAY(),K34)) -> 

Sheet بياض
A1: مسلسل | B1: =SUM($B$2:$B$986) -> 100 | C1: الصنف | D1: الاسم | E1: السعر | F1: =SUM($F$2:$F$986) -> 250 | G1: تاريخ البيع | H1: =SUM($H$2:$H$986) -> 2 | I1: =SUM($I$2:$I$986) -> 3 | J1: =SUM($J$2:$J$986) -> 5 | K1: التاريخ
A2: 1 | B2: 50 | C2: بياض | D2: وليد فوزى | F2: 0 | G2: 2018-10-25 | H2: =B2/50 -> 1 | I2: =J2-H2 -> 4 | J2: 5 | K2: =IF($J2="","",IF(K2="",TODAY(),K2)) -> 
A3: 1 | B3: 50 | C3: بياض | D3: زبون | E3: 5 | F3: 250 | G3: 2018-10-25 | H3: 1 | I3: -1
H4: 0 | I4: 0
H5: 0 | I5: 0
H6: 0 | I6: 0
H7: 0 | I7: 0
H8: 0 | I8: 0
H9: 0 | I9: 0
H10: 0 | I10: 0
H11: 0 | I11: 0
H12: 0 | I12: 0
H13: 0 | I13: 0
H14: 0 | I14: 0
H15: 0
H16: 0
H17: 0
H18: 0
H19: 0
H20: 0
H21: 0
H22: 0
H23: 0
H24: 0
H25: 0
H26: 0
H27: 0
H28: 0
H29: 0
H30: 0
H31: 0
H32: 0
H33: 0
K34: =IF($J34="","",IF(K34="",TODAY(),K34)) -> 

Sheet ردة
A1: مسلسل | B1: =SUM($B$2:$B$986) -> 0 | C1: الصنف | D1: الاسم | E1: السعر | F1: =SUM($F$2:$F$986) -> 0 | G1: تاريخ البيع | H1: =SUM($H$2:$H$986) -> 0 | I1: =SUM($I$2:$I$986) -> 0 | J1: =SUM($J$2:$J$986) -> 0 | K1: التاريخ
H2: =B2/40 -> 0 | I2: =J2-H2 -> 0 | J2: 0 | K2: =IF($J2="","",IF(K2="",TODAY(),K2)) -> 
H3: =B3/40 -> 0 | I3: 0
H4: 0 | I4: 0
H5: 0 | I5: 0
H6: 0 | I6: 0
H7: 0 | I7: 0
H8: 0 | I8: 0
H9: 0 | I9: 0
H10: 0 | I10: 0
H11: 0 | I11: 0
H12: 0 | I12: 0
H13: 0 | I13: 0
H14: 0 | I14: 0
H15: 0
H16: 0
H17: 0
H18: 0
H19: 0
H20: 0
H21: 0
H22: 0
H23: 0
H24: 0
H25: 0
H26: 0
H27: 0
H28: 0
H29: 0
H30: 0
H31: 0
H32: 0
H33: 0
K34: =IF($J34="","",IF(K34="",TODAY(),K34)) -> 

Sheet دشيشة
A1: مسلسل | B1: =SUM($B$2:$B$986) -> 0 | C1: الصنف | D1: الاسم | E1: السعر | F1: =SUM($F$2:$F$986) -> 0 | G1: تاريخ البيع | H1: =SUM($H$2:$H$986) -> 0 | I1: =SUM($I$2:$I$986) -> 0.55 | J1: =SUM($J$2:$J$986) -> 0.55 | K1: التاريخ
H2: =B2/50 -> 0 | I2: =J2-H2 -> 0.55 | J2: 0.55 | K2: =IF($J2="","",IF(K2="",TODAY(),K2)) -> 
H3: 0 | I3: 0
H4: 0 | I4: 0
H5: 0 | I5: 0
H6: 0 | I6: 0
H7: 0 | I7: 0
H8: 0 | I8: 0
H9: 0 | I9: 0
H10: 0 | I10: 0
H11: 0 | I11: 0
H12: 0 | I12: 0
H13: 0 | I13: 0
H14: 0 | I14: 0
H15: 0
H16: 0
H17: 0
H18: 0
H19: 0
H20: 0
H21: 0
H22: 0
H23: 0
H24: 0
H25: 0
H26: 0
H27: 0
H28: 0
H29: 0
H30: 0
H31: 0
H32: 0
H33: 0
K34: =IF($J34="","",IF(K34="",TODAY(),K34)) -> 

Sheet Setting (hidden)
A1: اسماء الأصناف | B1: سعر الكيلو | E1: أسماء العملاء
A2: بلدى | B2: 2.5 | E2: عميل رقم 1
A3: ساسو | B3: 3 | E3: عميل رقم 2
A4: دقى | B4: 3.5 | E4: عميل رقم 3
A5: فيومى | B5: 4 | E5: عميل رقم 4
A6: دشيشة | B6: 4.5 | E6: عميل رقم 5
A7: ردة | B7: 4.5 | E7: عميل رقم 6
A8: علف بط | B8: 5 | E8: عميل رقم 7
A9: بياض | B9: 5 | E9: عميل رقم 8
A10: تسمين | B10: 6.5 | E10: عميل رقم 9
A11: بادى نامى خشن | B11: 7 | E11: عميل رقم 10
A12: بادى نامى ناعم | B12: 7 | E12: عميل رقم 11
A13: نامى خشن | B13: 7 | E13: عميل رقم 12
A14: بادى ناعم | B14: 7.5 | E14: عميل رقم 13
A15: مولر | B15: 15 | E15: عميل رقم 14
A16: موسكوفى | B16: 18 | E16: عميل رقم 15
A17: رومى | B17: 30 | E17: عميل رقم 16
E18: عميل رقم 17
E19: عميل رقم 18
E20: عميل رقم 19
E21: عميل رقم 20
